fUSD/lending_fUSD_20240210
["ID","MTS","AMOUNT","RATE_DAILY","PERIOD"]
[313653461,1707541862000,-500.0,0.00025753,2]
[313653462,1707541862011,-4920.21,0.00025753,2]
[313653463,1707541862020,-170.68,0.00025795,2]
[313653464,1707541862029,-2303.0,0.000258,2]
[313653465,1707541862038,-152.56464471,0.00025809,2]
[313653466,1707541862047,-9915.0,0.000259,2]
[313653467,1707541862057,-150.0,0.00026026,2]
[313653468,1707541862066,-203.33954854,0.00026026,2]
[313653469,1707541862075,-348.56879629,0.00026027,2]
[313653470,1707541862085,-500.0,0.00026027,2]
[313653471,1707541862094,-500.0,0.00026027,2]
[313653472,1707541862103,-500.0,0.00026027,2]
[313653473,1707541862114,-701.35,0.00026027,2]
[313653474,1707541862122,-500.0,0.00026027,2]
[313653475,1707541862132,-363.67252069,0.00026027,2]
[313653476,1707541862142,-213.26353276,0.00026027,2]
[313653477,1707541862151,-500.0,0.00026027,2]
[313653478,1707541862161,-500.0,0.00026027,2]
[313653479,1707541862170,-500.0,0.00026027,2]
[313653480,1707541862180,-500.0,0.00026027,2]
[313653481,1707541862190,-355.89848949,0.00026027,2]
[313653482,1707541862199,-500.0,0.00026027,2]
[313653483,1707541862208,-500.0,0.00026027,2]
[313653484,1707541862218,-500.0,0.00026027,2]
[313653485,1707541862227,-500.0,0.00026027,2]
[313653486,1707541862236,-500.0,0.00026027,2]
[313653487,1707541862245,-500.0,0.00026027,2]
[313653488,1707541862256,-500.0,0.00026027,2]
[313653489,1707541862265,-500.0,0.00026027,2]
[313653490,1707541862274,-500.0,0.00026027,2]
[313653491,1707541862284,-500.0,0.00026027,2]
[313653492,1707541862294,-752.41,0.00026027,7]
[313653493,1707541862304,-500.0,0.00026027,2]
[313653494,1707541862314,-500.0,0.00026027,2]
[313653495,1707541862324,-500.0,0.00026027,2]
[313653496,1707541862334,-532.89,0.00026027,2]
[313653497,1707541862343,-307.76576693,0.00026027,2]
[313653498,1707541862353,-500.0,0.00026027,2]
[313653499,1707541862363,-230.84551488,0.00026027,2]
[313653500,1707541862372,-500.0,0.00026027,2]
[313653501,1707541862381,-500.0,0.00026027,2]
[313653502,1707541862391,-500.0,0.00026027,2]
[313653503,1707541862400,-703.46,0.00026027,2]
[313653504,1707541862410,-500.0,0.00026027,2]
[313653505,1707541862419,-500.0,0.00026027,2]
[313653506,1707541862431,-181.86190116,0.00026027,2]
[313653507,1707541862440,-339.03345458,0.00026027,2]
[313653508,1707541862450,-500.0,0.00026027,2]
[313653509,1707541862459,-500.0,0.00026027,2]
[313653510,1707541862469,-644.27,0.00026027,2]
[313653511,1707541862479,-500.0,0.00026027,2]
[313653512,1707541862489,-500.0,0.00026027,2]
[313653513,1707541862499,-500.0,0.00026027,2]
[313653514,1707541862509,-582.04935055,0.00026027,2]
[313653515,1707541862518,-500.0,0.00026027,2]
[313653516,1707541862528,-500.0,0.00026027,2]
[313653517,1707541862538,-500.0,0.00026027,2]
[313653518,1707541862548,-500.0,0.00026027,2]
[313653519,1707541862557,-526.57223015,0.00026027,2]
[313653520,1707541862567,-500.0,0.00026027,2]
[313653521,1707541862577,-500.0,0.00026027,2]
[313653522,1707541862587,-500.0,0.00026027,2]
[313653523,1707541862596,-545.13,0.00026027,2]
[313653524,1707541862606,-500.0,0.00026027,2]
[313653525,1707541862615,-500.0,0.00026027,2]
[313653526,1707541862624,-500.0,0.00026027,2]
[313653527,1707541862633,-500.0,0.00026027,2]
[313653528,1707541862642,-500.0,0.00026027,2]
[313653529,1707541862652,-500.0,0.00026027,2]
[313653530,1707541862664,-500.0,0.00026027,2]
[313653531,1707541862676,-500.0,0.00026027,2]
[313653532,1707541862685,-500.0,0.00026027,2]
[313653533,1707541862694,-500.0,0.00026027,2]
[313653534,1707541862704,-514.14,0.00026027,2]
[313653535,1707541862713,-500.0,0.00026027,2]
[313653536,1707541862722,-500.0,0.00026027,2]
[313653537,1707541862732,-500.0,0.00026027,2]
[313653538,1707541862741,-500.0,0.00026027,2]
[313653539,1707541862751,-1267.16,0.00026027,2]
[313653540,1707541862762,-589.03194655,0.00026027,2]
[313653541,1707541862772,-500.0,0.00026027,2]
[313653542,1707541862782,-500.0,0.00026027,2]
[313653543,1707541862791,-500.0,0.00026027,2]
[313653544,1707541862801,-1984.15,0.00026027,2]
[313653545,1707541862810,-807.45,0.00026027,2]
[313653546,1707541862820,-500.0,0.00026027,2]
[313653547,1707541862830,-500.0,0.00026027,2]
[313653548,1707541862839,-500.0,0.00026027,2]
[313653549,1707541862849,-500.0,0.00026027,2]
[313653550,1707541862858,-500.0,0.00026027,2]
[313653551,1707541862867,-987.68,0.00026027,2]
[313653552,1707541862875,-500.0,0.00026027,2]
[313653553,1707541862884,-500.0,0.00026027,2]
[313653554,1707541862893,-500.0,0.00026027,2]
[313653555,1707541862902,-192.68,0.00026027,2]
[313653556,1707541862912,-500.0,0.00026027,2]
[313653557,1707541862921,-500.0,0.00026027,2]
[313653558,1707541862930,-500.0,0.00026027,2]
[313653559,1707541862939,-529.73,0.00026027,2]
[313653560,1707541862948,-484.25263503,0.00026027,2]
[313653561,1707541862957,-489.91200412,0.00026027,2]
[313653562,1707541862967,-500.0,0.00026027,2]
[313653563,1707541862976,-500.0,0.00026027,2]
[313653564,1707541862986,-568.87,0.00026027,2]
[313653565,1707541862995,-500.0,0.00026027,2]
[313653566,1707541863004,-522.3200719,0.00026027,2]
[313653567,1707541863014,-500.0,0.00026027,2]
[313653568,1707541863024,-500.0,0.00026027,2]
[313653569,1707541863033,-500.0,0.00026027,2]
[313653570,1707541863043,-648.85,0.00026027,2]
[313653571,1707541863052,-538.7677623,0.00026027,2]
[313653572,1707541863062,-500.0,0.00026027,2]
[313653573,1707541863072,-500.0,0.00026027,2]
[313653574,1707541863082,-500.0,0.00026027,2]
[313653575,1707541863091,-602.23,0.00026027,2]
[313653576,1707541863101,-500.0,0.00026027,2]
[313653577,1707541863111,-500.0,0.00026027,2]
[313653578,1707541863120,-540.97601715,0.00026027,2]
[313653579,1707541863130,-500.0,0.00026027,2]
[313653580,1707541863139,-500.0,0.00026027,2]
[313653581,1707541863149,-500.0,0.00026027,2]
[313653582,1707541863158,-500.0,0.00026027,2]
[313653583,1707541863167,-520.72185107,0.00026027,2]
[313653584,1707541863177,-500.0,0.00026027,2]
[313653585,1707541863187,-650.09,0.00026027,2]
[313653586,1707541863197,-500.0,0.00026027,2]
[313653587,1707541863206,-500.0,0.00026027,2]
[313653588,1707541863215,-254.66584658,0.00026027,2]
[313653589,1707541863225,-545.39,0.00026027,2]
[313653590,1707541863235,-500.0,0.00026027,2]
[313653591,1707541863245,-500.0,0.00026027,2]
[313653592,1707541863254,-586.50666787,0.00026027,2]
[313653593,1707541863264,-500.0,0.00026027,2]
[313653594,1707541863275,-500.0,0.00026027,2]
[313653595,1707541863284,-500.0,0.00026027,2]
[313653596,1707541863294,-500.0,0.00026027,2]
[313653597,1707541863303,-728.16,0.00026027,2]
[313653598,1707541863313,-500.0,0.00026027,2]
[313653599,1707541863322,-500.0,0.00026027,2]
[313653600,1707541863332,-500.0,0.00026027,2]
[313653601,1707541863341,-520.57,0.00026027,2]
[313653602,1707541863352,-500.33394262,0.00026027,2]
[313653603,1707541863362,-4417.49,0.00026027,2]
[313653604,1707541863371,-796.62,0.00026027,2]
[313653605,1707541863381,-500.0,0.00026027,2]
[313653606,1707541863391,-500.0,0.00026027,2]
[313653607,1707541863401,-385.79132815,0.00026027,2]
[313653608,1707541863410,-996.88,0.00026027,2]
[313653609,1707541863420,-500.0,0.00026027,2]
[313653610,1707541863430,-500.0,0.00026027,2]
[313653611,1707541863440,-500.0,0.00026027,2]
[313653612,1707541863449,-543.72205953,0.00026027,2]
[313653613,1707541863459,-500.0,0.00026027,2]
[313653614,1707541863469,-476.57507833,0.00026027,2]
[313653615,1707541863478,-1603.32,0.00026027,2]
[313653616,1707541863487,-10488.09,0.00026027,2]
[313653617,1707541863496,-500.0,0.00026027,2]
[313653618,1707541863505,-500.0,0.00026027,2]
[313653619,1707541863514,-500.0,0.00026027,2]
[313653620,1707541863524,-500.0,0.00026027,2]
[313653621,1707541863533,-4700.07,0.00026027,2]
[313653622,1707541863542,-500.0,0.00026027,2]
[313653623,1707541863551,-540.71210795,0.00026027,2]
[313653624,1707541863561,-500.0,0.00026027,2]
[313653625,1707541863571,-1287.62,0.00026027,2]
[313653626,1707541863580,-500.0,0.00026027,2]
[313653627,1707541863590,-528.72,0.00026027,2]
[313653628,1707541863599,-544.89611441,0.00026027,2]
[313653629,1707541863608,-500.0,0.00026027,2]
[313653630,1707541863760,-500.0,0.00026027,2]
[313653631,1707541863770,-525.99,0.00026027,2]
[313653632,1707541863779,-4321.02,0.00026027,2]
[313653633,1707541863788,-456.85764935,0.00026027,2]
[313653634,1707541863797,-500.0,0.00026027,2]
[313653635,1707541863806,-588.92630773,0.00026027,2]
[313653636,1707541863815,-8622.86,0.00026027,2]
[313653637,1707541863824,-1235.43,0.00026027,2]
[313653638,1707541863833,-30330.68,0.00026027,2]
[313653639,1707541863842,-500.0,0.00026027,2]
[313653640,1707541863852,-500.0,0.00026027,2]
[313653641,1707541863861,-4111.15,0.00026027,2]
[313653642,1707541863870,-245.31188334,0.00026027,2]
[313653643,1707541863879,-500.0,0.00026027,2]
[313653644,1707541863888,-654.25,0.00026027,2]
[313653645,1707541863898,-640.25172336,0.00026027,2]
[313653646,1707541863906,-500.0,0.00026027,2]
[313653647,1707541863916,-7598.26,0.00026027,2]
[313653648,1707541863927,-546.60873595,0.00026027,2]
[313653649,1707541863936,-500.0,0.00026027,2]
[313653650,1707541863945,-2154.39,0.00026027,2]
[313653651,1707541863954,-1378.02,0.00026027,2]
[313653652,1707541863964,-500.0,0.00026027,2]
[313653653,1707541863973,-4004.66,0.00026027,2]
[313653654,1707541863982,-1141.14,0.00026027,2]
[313653655,1707541863991,-500.0,0.00026027,2]
[313653656,1707541864000,-500.0,0.00026027,2]
[313653657,1707541864009,-500.0,0.00026027,2]
[313653658,1707541864018,-563.45,0.00026027,2]
[313653659,1707541864027,-500.0,0.00026027,2]
[313653660,1707541864036,-5320.84,0.00026027,2]
[313653661,1707541864045,-500.0,0.00026027,2]
[313653662,1707541864054,-500.0,0.00026027,2]
[313653663,1707541864063,-500.0,0.00026027,2]
[313653664,1707541864072,-500.0,0.00026027,2]
[313653665,1707541864081,-16992.36,0.00026027,2]
[313653666,1707541864091,-672.96,0.00026027,2]
[313653667,1707541864101,-2003.76,0.00026027,2]
[313653668,1707541864110,-500.0,0.00026027,2]
[313653669,1707541864120,-3726.24,0.00026027,2]
[313653670,1707541864129,-554.9063028,0.00026027,2]
[313653671,1707541864138,-500.0,0.00026027,2]
[313653672,1707541864148,-500.0,0.00026027,2]
[313653673,1707541864158,-3043.1,0.00026027,2]
[313653674,1707541864167,-500.0,0.00026027,2]
[313653675,1707541864177,-500.0,0.00026027,2]
[313653676,1707541864187,-500.0,0.00026027,2]
[313653677,1707541864196,-500.0,0.00026027,2]
[313653678,1707541864205,-1589.97,0.00026027,2]
[313653679,1707541864214,-1214.58,0.00026027,2]
[313653680,1707541864223,-8143.14,0.00026027,2]
[313653681,1707541864232,-925.17,0.00026027,2]
[313653682,1707541864241,-10582.46,0.00026027,2]
[313653683,1707541864250,-752.09,0.00026027,2]
[313653684,1707541864259,-4054.82,0.00026027,2]
[313653685,1707541864269,-500.0,0.00026027,2]
[313653686,1707541864278,-560.02394006,0.00026027,2]
[313653687,1707541864287,-500.0,0.00026027,2]
[313653688,1707541864296,-500.0,0.00026027,2]
[313653689,1707541864305,-997.19,0.00026027,2]
[313653690,1707541864314,-500.0,0.00026027,2]
[313653691,1707541864323,-1086.84,0.00026027,2]
[313653692,1707541864332,-163.52551752,0.00026027,2]
[313653693,1707541864342,-989.49,0.00026027,2]
[313653694,1707541864351,-2893.62,0.00026027,2]
[313653695,1707541864361,-8417.08,0.00026027,2]
[313653696,1707541864370,-762.91,0.00026027,2]
[313653697,1707541864380,-6092.25,0.00026027,2]
[313653698,1707541864389,-500.0,0.00026027,2]
[313653699,1707541864399,-500.0,0.00026027,2]
[313653700,1707541864409,-3262.21,0.00026027,2]
[313653701,1707541864419,-533.82,0.00026027,2]
[313653702,1707541864429,-5772.68,0.00026027,2]
[313653703,1707541864438,-158.85059765,0.00026027,2]
[313653704,1707541864447,-2553.08,0.00026027,2]
[313653705,1707541864456,-270.79188448,0.00026027,2]
[313653706,1707541864466,-3141.04,0.00026027,2]
[313653707,1707541864476,-1237.02,0.00026027,2]
[313653708,1707541864485,-1014.79,0.00026027,2]
[313653709,1707541864494,-500.0,0.00026027,2]
[313653710,1707541864504,-797.39,0.00026027,2]
[313653711,1707541864513,-701.54,0.00026027,2]
[313653712,1707541864523,-500.0,0.00026027,2]
[313653713,1707541864533,-1877.41,0.00026027,2]
[313653714,1707541864543,-398.06739318,0.00026027,2]
[313653715,1707541864551,-824.19,0.00026027,2]
[313653716,1707541864561,-500.0,0.00026027,2]
[313653717,1707541864571,-780.84,0.00026027,2]
[313653718,1707541864580,-11120.76,0.00026027,2]
[313653719,1707541864590,-2774.65,0.00026027,2]
[313653720,1707541864599,-500.0,0.00026027,2]
[313653721,1707541864609,-500.0,0.00026027,2]
[313653722,1707541864619,-841.34,0.00026027,2]
[313653723,1707541864629,-500.0,0.00026027,2]
[313653724,1707541864639,-548.98,0.00026027,2]
[313653725,1707541864648,-3133.73,0.00026027,2]
[313653726,1707541864658,-500.0,0.00026027,2]
[313653727,1707541864674,-5696.15,0.00026027,2]
[313653728,1707541864683,-1369.16,0.00026027,2]
[313653729,1707541864693,-1083.9,0.00026027,2]
[313653730,1707541864703,-3213.78,0.00026027,2]
[313653731,1707541864713,-541.20016117,0.00026027,2]
[313653732,1707541864722,-858.57,0.00026027,2]
[313653733,1707541864731,-1992.71,0.00026027,2]
[313653734,1707541864741,-756.03,0.00026027,2]
[313653735,1707541864750,-1694.87,0.00026027,2]
[313653736,1707541864759,-21142.71,0.00026027,2]
[313653737,1707541864769,-500.0,0.00026027,2]
[313653738,1707541864777,-3065.8,0.00026027,2]
[313653739,1707541864786,-750.69,0.00026027,2]
[313653740,1707541864795,-234.4028013,0.00026027,2]
[313653741,1707541864805,-500.0,0.00026027,2]
[313653742,1707541864814,-500.0,0.00026027,2]
[313653743,1707541864831,-500.0,0.00026027,2]
[313653744,1707541864850,-500.0,0.00026027,2]
[313653745,1707541864865,-1076.84,0.00026027,2]
[313653746,1707541864882,-3466.34,0.00026027,2]
[313653747,1707541864901,-1002.98,0.00026027,2]
[313653748,1707541864914,-500.0,0.00026027,2]
[313653749,1707541864931,-500.0,0.00026027,2]
[313653750,1707541864946,-569.26,0.00026027,2]
[313653751,1707541864963,-500.0,0.00026027,2]
[313653752,1707541864976,-500.0,0.00026027,2]
[313653753,1707541864995,-1066.53,0.00026027,2]
[313653754,1707541865010,-723.87,0.00026027,2]
[313653755,1707541865026,-500.0,0.00026027,2]
[313653756,1707541865043,-6160.91,0.00026027,2]
[313653757,1707541865063,-532.38,0.00026027,2]
[313653758,1707541865078,-500.0,0.00026027,2]
[313653759,1707541865090,-3525.48,0.00026027,2]
[313653760,1707541865107,-399.10094949,0.00026027,2]
[313653761,1707541865124,-556.85,0.00026027,2]
[313653762,1707541865137,-4907.77,0.00026027,2]
[313653763,1707541865149,-500.0,0.00026027,2]
[313653764,1707541865164,-4920.21,0.00026027,2]
[313653765,1707541865179,-152.56464471,0.00026074,2]
[313653766,1707541865193,-150.0,0.00026079,2]
[313653767,1707541865208,-243.64,0.00026224,2]
[313653768,1707541865223,-228.22,0.00026284,2]
[313653769,1707541865236,-500.0,0.00026301,2]
[313653770,1707541865250,-500.0,0.00026301,2]
[313653771,1707541865264,-500.0,0.00026301,2]
[313653772,1707541865277,-701.35,0.00026301,2]
[313653773,1707541865291,-437.90071097,0.00026301,2]
[313653774,1707541865309,-500.0,0.00026301,2]
[313653775,1707541865322,-500.0,0.00026301,2]
[313653776,1707541865336,-500.0,0.00026301,2]
[313653777,1707541865350,-500.0,0.00026301,2]
[313653778,1707541865364,-500.0,0.00026301,2]
[313653779,1707541865377,-500.0,0.00026301,2]
[313653780,1707541865390,-500.0,0.00026301,2]
[313653781,1707541865404,-500.0,0.00026301,2]
[313653782,1707541865418,-500.0,0.00026301,2]
[313653783,1707541865433,-500.0,0.00026301,2]
[313653784,1707541865447,-500.0,0.00026301,2]
[313653785,1707541865461,-500.0,0.00026301,2]
[313653786,1707541865476,-500.0,0.00026301,2]
[313653787,1707541865491,-500.0,0.00026301,2]
[313653788,1707541865505,-752.41,0.00026301,7]
[313653789,1707541865519,-500.0,0.00026301,2]
[313653790,1707541865534,-500.0,0.00026301,2]
[313653791,1707541865548,-500.0,0.00026301,2]
[313653792,1707541865563,-532.89,0.00026301,2]
[313653793,1707541865578,-500.0,0.00026301,2]
[313653794,1707541865592,-500.0,0.00026301,2]
[313653795,1707541865605,-500.0,0.00026301,2]
[313653796,1707541865619,-500.0,0.00026301,2]
[313653797,1707541865633,-703.46,0.00026301,2]
[313653798,1707541865648,-500.0,0.00026301,2]
[313653799,1707541865663,-500.0,0.00026301,2]
[313653800,1707541865678,-542.18516533,0.00026301,2]
[313653801,1707541865692,-500.0,0.00026301,2]
[313653802,1707541865708,-644.27,0.00026301,2]
[313653803,1707541865723,-359.96718293,0.00026301,2]
[313653804,1707541865737,-500.0,0.00026301,2]
[313653805,1707541865751,-500.0,0.00026301,2]
[313653806,1707541865765,-500.0,0.00026301,2]
[313653807,1707541865778,-500.0,0.00026301,2]
[313653808,1707541865792,-500.0,0.00026301,2]
[313653809,1707541865806,-500.0,0.00026301,2]
[313653810,1707541865820,-500.0,0.00026301,2]
[313653811,1707541865834,-500.0,0.00026301,2]
[313653812,1707541865848,-500.0,0.00026301,2]
[313653813,1707541865862,-545.13,0.00026301,2]
[313653814,1707541865876,-500.0,0.00026301,2]
[313653815,1707541865891,-404.12155306,0.00026301,2]
[313653816,1707541865904,-500.0,0.00026301,2]
[313653817,1707541865918,-500.0,0.00026301,2]
[313653818,1707541865932,-500.0,0.00026301,2]
[313653819,1707541865946,-500.0,0.00026301,2]
[313653820,1707541865959,-500.0,0.00026301,2]
[313653821,1707541865973,-500.0,0.00026301,2]
[313653822,1707541865988,-500.0,0.00026301,2]
[313653823,1707541866002,-500.0,0.00026301,2]
[313653824,1707541866016,-514.14,0.00026301,2]
[313653825,1707541866031,-500.0,0.00026301,2]
[313653826,1707541866044,-500.0,0.00026301,2]
[313653827,1707541866058,-500.0,0.00026301,2]
[313653828,1707541866073,-500.0,0.00026301,2]
[313653829,1707541866088,-1267.16,0.00026301,2]
[313653830,1707541866102,-500.0,0.00026301,2]
[313653831,1707541866113,-572.41238366,0.00026301,2]
[313653832,1707541866122,-500.0,0.00026301,2]
[313653833,1707541866132,-1984.15,0.00026301,2]
[313653834,1707541866142,-807.45,0.00026301,2]
[313653835,1707541866151,-500.0,0.00026301,2]
[313653836,1707541866161,-500.0,0.00026301,2]
[313653837,1707541866171,-500.0,0.00026301,2]
[313653838,1707541866180,-500.0,0.00026301,2]
[313653839,1707541866190,-500.0,0.00026301,2]
[313653840,1707541866199,-987.68,0.00026301,2]
[313653841,1707541866208,-500.0,0.00026301,2]
[313653842,1707541866219,-500.0,0.00026301,2]
[313653843,1707541866228,-500.0,0.00026301,2]
[313653844,1707541866238,-192.68,0.00026301,2]
[313653845,1707541866247,-500.0,0.00026301,2]
[313653846,1707541866257,-500.0,0.00026301,2]
[313653847,1707541866266,-500.0,0.00026301,2]
[313653848,1707541866276,-529.73,0.00026301,2]
[313653849,1707541866285,-500.0,0.00026301,2]
[313653850,1707541866295,-500.0,0.00026301,2]
[313653851,1707541866304,-568.87,0.00026301,2]
[313653852,1707541866313,-500.0,0.00026301,2]
[313653853,1707541866323,-500.0,0.00026301,2]
[313653854,1707541866332,-500.0,0.00026301,2]
[313653855,1707541866576,-500.0,0.00026301,2]
[313653856,1707541866699,-648.85,0.00026301,2]
[313653857,1707541866722,-500.0,0.00026301,2]
[313653858,1707541866733,-500.0,0.00026301,2]
[313653859,1707541866743,-322.36302386,0.00026301,2]
[313653860,1707541866753,-602.23,0.00026301,2]
[313653861,1707541866763,-500.0,0.00026301,2]
[313653862,1707541866772,-500.0,0.00026301,2]
[313653863,1707541866781,-500.0,0.00026301,2]
[313653864,1707541866791,-500.0,0.00026301,2]
[313653865,1707541866801,-500.0,0.00026301,2]
[313653866,1707541866810,-500.0,0.00026301,2]
[313653867,1707541866821,-615.4100986,0.00026301,2]
[313653868,1707541866831,-650.09,0.00026301,2]
[313653869,1707541866840,-500.0,0.00026301,2]
[313653870,1707541866850,-500.0,0.00026301,2]
[313653871,1707541866859,-545.39,0.00026301,2]
[313653872,1707541866869,-222.78970354,0.00026301,2]
[313653873,1707541866878,-500.0,0.00026301,2]
[313653874,1707541866888,-500.0,0.00026301,2]
[313653875,1707541866898,-500.0,0.00026301,2]
[313653876,1707541866907,-500.0,0.00026301,2]
[313653877,1707541866917,-500.0,0.00026301,2]
[313653878,1707541866928,-728.16,0.00026301,2]
[313653879,1707541866937,-500.0,0.00026301,2]
[313653880,1707541866947,-500.0,0.00026301,2]
[313653881,1707541866956,-500.0,0.00026301,2]
[313653882,1707541866966,-520.57,0.00026301,2]
[313653883,1707541866975,-796.62,0.00026301,2]
[313653884,1707541866985,-4417.49,0.00026301,2]
[313653885,1707541866995,-348.73041642,0.00026301,2]
[313653886,1707541867004,-500.0,0.00026301,2]
[313653887,1707541867013,-996.88,0.00026301,2]
[313653888,1707541867023,-500.0,0.00026301,2]
[313653889,1707541867032,-500.0,0.00026301,2]
[313653890,1707541867043,-500.0,0.00026301,2]
[313653891,1707541867052,-500.0,0.00026301,2]
[313653892,1707541867061,-1603.32,0.00026301,2]
[313653893,1707541867071,-5084.90727552,0.00026301,2]
[313653894,1707541867103,-3707.81885044,0.00026301,2]
[313653895,1707541867133,-500.0,0.00024657,2]
[313653896,1707541871639,208.0,0.00022581,2]
[313653897,1707541871697,792.09365867,0.0002093,2]
[313653898,1707541871727,84.51188336,0.0002093,2]
[313653900,1707541882881,880.48443306,0.0002093,2]
[313653901,1707541904696,869.67746725,0.0002093,2]
[313653902,1707541919855,500.0,0.00024657,15]
[313653903,1707541919916,352.49285937,0.00024931,15]
[313653904,1707541924693,869.67746725,0.0002093,2]
[313653905,1707541941184,619.11841228,0.0002093,2]
[313653906,1707541962490,-1407.94709703,0.00022794,2]
[313653907,1707541962511,-216.66453651,0.00022795,2]
[313653908,1707541962531,-4541.91667027,0.00022795,2]
[313653909,1707541962551,-250.02461482,0.00022796,2]
[313653910,1707541962570,-155.0,0.00022796,2]
[313653911,1707541962590,-414.09266813,0.00022796,2]
[313653912,1707541962610,-1046.76795033,0.00022797,2]
[313653913,1707541962630,-150.0,0.00022799,2]
[313653914,1707541962650,-150.0,0.00022799,2]
[313653915,1707541962670,-26269.1586,0.000228,2]
[313653916,1707541962694,-13461.90198629,0.00022885,2]
[313653917,1707541962715,-874.45882566,0.00023,2]
[313653918,1707541962735,-810.61582788,0.00023,2]
[313653919,1707542031440,468.02838644,0.00023,2]
[313653920,1707542099952,177.43,0.00016712,2]
[313653921,1707542132466,256.69,0.00021937,2]
[313653922,1707542211457,500.0,0.00027397,14]
[313653923,1707542211745,500.0,0.00027397,14]
[313653924,1707542212089,500.0,0.00027397,14]
[313653925,1707542212357,66.74432794,0.00027397,14]
[313653927,1707542362757,1001.5277416,0.00022996,5]
[313653929,1707542668270,257.88,0.00021321,2]
[313653930,1707542875553,952.15298599,0.0002,2]
[313653931,1707542878841,176.45934803,0.000228,2]
[313653950,1707543032136,-880.0,0.00023088,2]
[313653953,1707543032146,-155.0,0.00023098,2]
[313653955,1707543032155,-152.90355241,0.00023099,2]
[313653957,1707543032165,-2229.50767779,0.00023121,2]
[313653960,1707543032178,-474.01370317,0.00023121,2]
[313653961,1707543032200,-954.01451178,0.00023121,2]
[313653962,1707543032244,-1554.71500381,0.00023121,2]
[313653963,1707543032253,-661.49,0.00023122,2]
[313653964,1707543032263,-178.32,0.00023122,2]
[313653965,1707543032272,-1405.47499619,0.00023123,2]
[313653966,1707543032284,-299.42368159,0.00023123,2]
[313653967,1707543032324,-295.10132222,0.00023123,2]
[313653968,1707543032334,-61.46381486,0.00023136,2]
[313653987,1707543038272,-228.39618514,0.00023136,2]
[313653988,1707543038282,-150.0,0.00023199,2]
[313653989,1707543038291,-579.19090025,0.000232,2]
[313653990,1707543038309,-1088.80909975,0.000232,2]
[313653991,1707543038319,-1173.57425851,0.00023249,2]
[313653992,1707543038331,-1531.42574149,0.00023249,2]
[313653993,1707543038341,-796.86,0.00023255,2]
[313653994,1707543038350,-250.0,0.0002326,2]
[313653995,1707543038359,-170.68,0.00023265,2]
[313653996,1707543038369,-150.0,0.00023294,2]
[313653997,1707543038379,-14630.45,0.00023396,2]
[313653998,1707543038388,-499.99,0.00023396,2]
[313653999,1707543038398,-513.12,0.00023429,2]
[313654000,1707543038407,-152.90355239,0.00023445,2]
[313654001,1707543038417,-513.12,0.00023494,2]
[313654002,1707543038426,-513.12,0.00023558,2]
[313654003,1707543038435,-96.21552971,0.00023585,2]
[313654004,1707543038448,-161.66447029,0.00023585,2]
[313654005,1707543038458,-474.29902256,0.00023622,2]